bitfinex/quotes_SOLUSD_20251125
["timestamp","ask_amount","ask_price","bid_price","bid_amount"]
[1764110531877,11.33914939,138.54,138.49,16.308864]
[1764110532066,0.69,138.53,138.49,16.308864]
[1764110532457,7.90911169,138.53,138.49,7.2207183]
[1764110532882,7.21911169,138.53,138.49,23.5295823]
[1764110533082,7.90911169,138.53,138.49,17.008864]
[1764110533387,0.69,138.52,138.49,16.308864]
[1764110533755,7.21911169,138.53,138.49,7.22073685]
[1764110533961,0.69,138.52,138.49,23.52960085]
[1764110534280,0.69,138.53,138.49,24.22960085]
[1764110534489,0.69,138.56,138.5,0.7]
[1764110534693,12.02914939,138.56,138.5,0.7]
[1764110535479,0.69,138.56,138.5,0.7]
[1764110535869,7.9072641,138.56,138.51,7.21969532]
[1764110536279,7.9072641,138.56,138.52,0.7]
[1764110536455,7.2172641,138.56,138.52,0.7]
[1764110536659,11.33914939,138.58,138.52,0.7]
[1764110536858,12.02914939,138.58,138.52,0.7]
[1764110537674,19.24560833,138.58,138.53,7.21865299]
[1764110538173,0.69,138.57,138.53,7.91865299]
[1764110539677,0.69,138.57,138.53,11.13865299]
[1764110540087,7.90659908,138.57,138.53,11.13865299]
[1764110541493,0.69,138.57,138.53,11.13865299]
[1764110542009,7.90663012,138.57,138.53,11.13865299]
[1764110543673,0.69,138.56,138.53,3.22]
[1764110543975,0.69,138.56,138.53,10.4386268]
[1764110544179,0.69,138.56,138.53,11.0886268]
[1764110544376,0.69,138.56,138.53,10.2596268]
[1764110544996,0.69,138.56,138.53,3.041]
[1764110545690,0.69,138.56,138.52,10.4389852]
[1764110545874,7.90728807,138.56,138.52,11.0889852]
[1764110547278,7.90728807,138.56,138.5,20.58232668]
[1764110547279,0.69,138.55,138.5,16.308864]
[1764110547486,0.69,138.55,138.5,23.52888689]
[1764110547681,0.69,138.55,138.5,16.308864]
[1764110547893,4.27346268,138.54,138.49,7.22052043]
[1764110548398,0.69,138.53,138.49,7.22052043]
[1764110548776,7.21917412,138.52,138.49,7.22052043]
[1764110548972,7.21917412,138.52,138.48,10.44122951]
[1764110549379,0.69,138.51,138.47,23.53050729]
[1764110549795,0.69,138.51,138.47,24.18050729]
[1764110550775,18.04342236,138.56,138.48,0.65]
[1764110551089,0.69,138.54,138.48,0.65]
[1764110551295,0.69,138.54,138.49,3.22]
[1764110551983,10.43656924,138.57,138.49,11.09056514]
[1764110551984,0.69,138.53,138.49,11.09056514]
[1764110552282,4.27346268,138.55,138.49,11.09056514]
[1764110552478,4.27346268,138.55,138.5,0.65]
[1764110552700,4.96346268,138.55,138.5,0.65]
[1764110552998,30.22145502,138.57,138.5,0.65]
[1764110553201,0.69,138.56,138.5,0.65]
[1764110554002,4.27346268,138.55,138.49,3.22]
[1764110554398,0.69,138.54,138.49,3.22]
[1764110555188,7.90830241,138.54,138.5,7.2202166]
[1764110555802,0.69,138.53,138.5,7.2202166]
[1764110556307,4.96346268,138.55,138.5,7.8702166]
[1764110556599,0.69,138.54,138.5,7.8702166]
[1764110557404,7.90822706,138.54,138.5,7.8702166]
[1764110558411,0.69,138.54,138.5,7.8702166]
[1764110559908,7.21780983,138.55,138.51,0.65]
[1764110560111,0.69,138.54,138.51,0.65]
[1764110560923,0.69,138.54,138.5,7.2202166]
[1764110561609,7.90856775,138.54,138.5,7.2202166]
[1764110562008,0.69,138.53,138.5,7.2202166]
[1764110562192,7.90856775,138.54,138.5,7.8702166]
[1764110562507,0.69,138.53,138.5,7.2202166]
[1764110562894,7.21856775,138.54,138.5,7.2202166]
[1764110563199,7.21783619,138.55,138.5,7.2202166]
[1764110563405,12.18129887,138.55,138.51,0.65]
[1764110563709,12.18129887,138.55,138.5,7.8702166]
[1764110563710,0.69,138.54,138.5,7.8702166]
[1764110564292,7.90814908,138.54,138.5,7.8702166]
[1764110564502,0.69,138.54,138.5,7.8702166]
[1764110565113,0.69,138.54,138.5,25.92075811]
[1764110566097,0.69,138.54,138.5,30.19422079]
[1764110566305,14.70971107,138.58,138.51,0.65]
[1764110566507,0.69,138.57,138.51,0.65]
[1764110566712,0.69,138.59,138.52,16.3034076]
[1764110567125,0.69,138.59,138.53,0.65]
[1764110568122,0.69,138.59,138.54,7.21813194]
[1764110568298,7.90562488,138.59,138.54,7.21813194]
[1764110568896,0.69,138.59,138.54,7.21813194]
[1764110569200,7.90563752,138.59,138.54,7.21813194]
[1764110569401,0.69,138.59,138.55,0.65]
[1764110569606,25.25274861,138.6,138.53,3.22]
[1764110569806,0.69,138.58,138.53,3.87]
[1764110570118,7.90619694,138.58,138.53,11.08849723]
[1764110570524,0.69,138.57,138.53,11.08849723]
[1764110570698,0.69,138.57,138.53,29.13512972]
[1764110575422,7.21563255,138.59,138.53,28.48512972]
[1764110575728,0.71,138.57,138.53,29.18512972]
[1764110576731,0.71,138.57,138.53,11.13849723]
[1764110577104,0.71,138.57,138.53,10.43849723]
[1764110577300,0.71,138.57,138.53,11.13849723]
[1764110577719,7.92612092,138.58,138.54,0.7]
[1764110577925,0.71,138.57,138.54,0.7]
[1764110578310,0.71,138.57,138.53,10.43849723]
[1764110578513,0.71,138.57,138.53,11.13849723]
[1764110578716,0.71,138.58,138.54,0.7]
[1764110579705,0.71,138.58,138.55,7.21761097]
[1764110580634,3.44489039,138.58,138.55,7.21761097]
[1764110581017,0.72,138.57,138.55,7.21761097]
[1764110581828,2.73489039,138.58,138.55,7.87761097]
[1764110582322,0.72,138.59,138.56,0.66]
[1764110582505,2.73489039,138.6,138.56,0.66]
[1764110582709,3.45489039,138.6,138.56,0.66]
[1764110582908,0.72,138.6,138.56,0.66]
[1764110583530,0.72,138.6,138.56,3.88]
[1764110583739,5.95489039,138.61,138.56,3.88]
[1764110583923,0.72,138.61,138.57,7.87656924]
[1764110584125,3.45489039,138.64,138.58,8.80994492]
[1764110584304,3.45489039,138.64,138.59,3.22]
[1764110584504,3.45489039,138.64,138.59,3.88]
[1764110584717,2.73489039,138.64,138.6,0.66]
[1764110585014,0.72,138.63,138.6,0.66]
[1764110585413,0.72,138.63,138.6,7.87461322]
[1764110586928,18.0302127,138.66,138.61,0.66]
[1764110586929,7.21206721,138.66,138.61,0.66]
[1764110587140,9.9469576,138.66,138.62,3.22]
[1764110587334,2.73489039,138.68,138.63,0.66]
[1764110587515,3.45489039,138.68,138.63,0.66]
[1764110587709,3.55489039,138.69,138.63,0.66]
[1764110587941,8.03054564,138.69,138.64,16.308864]
[1764110588235,0.1,138.69,138.66,8.80994492]
[1764110588448,0.1,138.69,138.68,16.308864]
[1764110588621,0.1,138.69,138.68,28.33880892]
[1764110588946,0.1,138.69,138.68,36.20965403]
[1764110589234,0.1,138.69,138.68,32.32965403]
[1764110589430,0.1,138.69,138.68,36.20965403]
[1764110590410,1e-08,138.69,138.68,36.20965403]
[1764110590627,1e-08,138.7,138.69,9.46994492]
[1764110590848,1e-08,138.7,138.69,19.41516049]
[1764110592432,1e-08,138.7,138.69,16.6802701]
[1764110592736,1e-08,138.7,138.69,39.09669952]
[1764110592906,1e-08,138.7,138.69,36.2091341]
[1764110593719,1e-08,138.7,138.69,24.17918918]
[1764110593922,1e-08,138.7,138.69,27.39918918]
[1764110594223,1e-08,138.7,138.69,11.09032518]
[1764110594417,1e-08,138.7,138.69,27.39918918]
[1764110594818,1e-08,138.7,138.69,36.2091341]
[1764110595125,1e-08,138.7,138.69,19.9002701]
[1764110596413,0.72,138.77,138.69,19.9002701]
[1764110596414,0.72,138.77,138.72,16.308864]
[1764110596629,0.72,138.77,138.73,19.528864]
[1764110597128,0.72,138.77,138.73,26.73672001]
[1764110598027,7.92619683,138.77,138.73,26.73672001]
[1764110598645,0.72,138.76,138.73,26.73672001]
[1764110600851,0.72,138.76,138.73,23.51672001]
[1764110601016,0.72,138.76,138.73,26.73672001]
[1764110602356,0.72,138.76,138.63,59.75151282]
[1764110602357,2.73489039,138.74,138.63,59.75151282]
[1764110602516,2.73489039,138.72,138.64,3.39489039]
[1764110602856,2.73489039,138.72,138.65,3.22]
[1764110603030,0.72,138.71,138.65,3.22]
[1764110603738,7.20980533,138.7,138.66,7.21188518]
[1764110603941,7.20980533,138.7,138.65,10.43222131]
[1764110604126,0.7,138.69,138.65,10.43222131]
[1764110604323,0.7,138.69,138.66,3.22]
[1764110606140,0.7,138.69,138.66,10.43179513]
[1764110607630,7.91037301,138.69,138.66,3.22]
[1764110608236,0.7,138.68,138.66,3.22]
[1764110609251,0.7,138.68,138.66,7.21184293]
[1764110611147,10.64417594,138.71,138.66,7.89184293]
[1764110611446,10.64417594,138.71,138.66,7.21184293]
[1764110611755,0.7,138.7,138.66,10.43184293]
[1764110612065,0.7,138.7,138.66,7.21184293]
[1764110612254,7.91015913,138.7,138.65,7.21240533]
[1764110613138,0.7,138.69,138.65,7.21240533]
[1764110613847,7.21015913,138.7,138.65,7.21240533]
[1764110614033,7.91015913,138.7,138.66,0.68]
[1764110614354,0.7,138.69,138.65,7.89240533]
[1764110614554,0.7,138.69,138.65,7.21240533]
[1764110615061,0.7,138.68,138.65,7.21240533]
[1764110615957,9.94438558,138.71,138.65,25.24341867]
[1764110616128,0.7,138.69,138.65,25.92341867]
[1764110616325,0.7,138.71,138.66,25.79880892]
[1764110616530,0.7,138.71,138.68,7.21084511]
[1764110616938,0.7,138.71,138.68,7.89084511]
[1764110617145,0.7,138.71,138.68,25.91795788]
[1764110617454,0.7,138.71,138.68,25.23795788]
[1764110619064,0.7,138.71,138.68,28.45795788]
[1764110619751,0.7,138.71,138.68,25.23795788]
[1764110619956,0.7,138.71,138.68,28.45795788]
[1764110621034,0.7,138.71,138.68,29.13795788]
[1764110624651,0.7,138.71,138.68,28.45795788]
[1764110625048,0.7,138.71,138.68,7.21084511]
[1764110625365,7.90941634,138.71,138.67,7.21112847]
[1764110625548,7.90941634,138.71,138.64,36.06447234]
[1764110625549,2.73489039,138.7,138.64,18.71175102]
[1764110625753,3.43489039,138.7,138.64,21.93175102]
[1764110625964,3.43489039,138.7,138.64,38.24061502]
[1764110625965,0.7,138.69,138.64,38.24061502]
[1764110626342,0.7,138.69,138.65,7.89240533]
[1764110626551,7.91033788,138.69,138.65,7.89240533]
[1764110626750,0.7,138.69,138.65,7.89240533]
[1764110626963,0.7,138.68,138.65,7.89240533]
[1764110627655,0.7,138.68,138.65,7.21240533]
[1764110628346,0.7,138.68,138.65,7.89240533]
[1764110628860,0.7,138.68,138.65,11.11240533]
[1764110629678,0.7,138.68,138.65,10.43240533]
[1764110630557,7.91084916,138.68,138.64,25.24467658]
[1764110630888,7.91084916,138.68,138.64,10.43292556]
[1764110630889,0.7,138.68,138.64,10.43292556]
[1764110631067,0.7,138.67,138.64,11.11292556]
[1764110631276,0.7,138.67,138.64,10.43292556]
[1764110635172,0.7,138.67,138.64,7.21292556]
[1764110635356,7.91143981,138.67,138.62,7.21378377]
[1764110635668,10.6463302,138.67,138.62,19.24372869]
[1764110635868,0.68,138.66,138.62,19.24372869]
[1764110636260,0.68,138.66,138.62,12.02994492]
[1764110636665,0.68,138.66,138.62,12.71994492]
[1764110637377,0.68,138.66,138.63,7.21344586]
[1764110637871,0.68,138.67,138.63,7.90344586]
[1764110638269,0.68,138.67,138.63,7.21344586]
[1764110640182,0.68,138.67,138.64,10.43273849]
[1764110640973,0.68,138.67,138.62,30.26917074]
[1764110640974,0.68,138.67,138.63,11.1231969]
[1764110641167,0.68,138.67,138.63,31.89170194]
[1764110641476,3.22,138.7,138.64,0.69]
[1764110641783,0.72,138.68,138.64,0.69]
[1764110642278,0.72,138.7,138.66,8.80994492]
[1764110642470,0.72,138.7,138.66,12.02994492]
[1764110642777,0.72,138.71,138.67,0.69]
[1764110643580,0.72,138.71,138.68,7.21084511]
[1764110643764,0.72,138.71,138.69,3.22]
[1764110644178,7.20824623,138.73,138.69,3.22]
[1764110644378,0.72,138.72,138.69,3.22]
[1764110645086,0.72,138.74,138.7,8.80994492]
[1764110645261,0.72,138.73,138.7,8.80994492]
[1764110645581,0.72,138.73,138.71,7.20928555]
[1764110648667,0.72,138.73,138.7,10.429635]
[1764110648883,7.92826939,138.73,138.7,7.209635]
[1764110649189,12.19310418,138.73,138.7,7.209635]
[1764110649391,0.72,138.72,138.7,7.209635]
[1764110649688,0.72,138.72,138.66,18.71843964]
[1764110649995,7.20928555,138.71,138.67,10.43087511]
[1764110650378,0.72,138.7,138.67,10.43087511]
[1764110651387,0.72,138.7,138.67,7.21087511]
[1764110656306,0.72,138.7,138.67,10.43087511]
[1764110658492,0.72,138.7,138.67,7.21087511]
[1764110666792,7.92987601,138.7,138.67,7.21087511]
[1764110666989,7.20987601,138.7,138.67,7.21087511]
[1764110667295,4.93483479,138.69,138.65,7.21215362]
[1764110667604,12.14541511,138.69,138.65,7.21215362]
[1764110667901,0.67,138.68,138.65,7.21215362]
[1764110668682,0.67,138.68,138.64,7.89274189]
[1764110668879,4.26483479,138.67,138.61,7.21448668]
[1764110669198,4.26483479,138.67,138.58,7.21604849]
[1764110669199,4.26483479,138.63,138.58,7.21604849]
[1764110669502,4.26483479,138.59,138.54,0.68]
[1764110669703,4.26483479,138.59,138.53,25.94513639]
[1764110669912,0.67,138.58,138.53,29.16513639]
[1764110671101,4.26483479,138.55,138.52,0.2]
[1764110671284,4.26483479,138.53,138.52,0.2]
[1764110671721,4.93483479,138.53,138.52,0.2]
[1764110673006,12.15348778,138.53,138.52,0.2]
[1764110675416,4.93483479,138.53,138.52,0.2]
[1764110677998,78.04198193,138.57,138.52,0.2]
[1764110677999,7.21709006,138.56,138.52,0.2]
[1764110678199,4.26483479,138.55,138.52,0.2]
[1764110678396,4.93483479,138.55,138.52,0.2]
[1764110678614,0.67,138.54,138.52,0.2]
[1764110680501,7.88816304,138.54,138.52,0.2]
[1764110685319,7.21816304,138.54,138.52,0.2]
[1764110685517,7.88816304,138.54,138.52,0.2]
[1764110688312,7.21816304,138.54,138.52,0.2]
[1764110688528,12.15265742,138.55,138.52,0.2]
[1764110688905,0.67,138.54,138.52,0.2]
[1764110690029,7.88833723,138.54,138.52,0.2]
[1764110692802,7.21833723,138.54,138.52,0.2]
[1764110693004,0.67,138.53,138.52,0.2]
[1764110693709,0.71,138.53,138.52,0.2]
[1764110694318,3.93,138.53,138.52,0.2]
[1764110694721,8.19483479,138.53,138.52,0.2]
[1764110694910,15.41348778,138.53,138.52,0.2]
[1764110698311,11.14865299,138.53,138.52,0.2]
[1764110700408,3.88,138.55,138.52,0.2]
[1764110700637,7.21709006,138.56,138.52,8.13907833]
[1764110700823,7.87709006,138.56,138.52,8.13907833]
[1764110701018,7.87709006,138.56,138.52,7.41907833]
[1764110701327,7.21709006,138.56,138.52,8.13907833]
[1764110701525,0.66,138.55,138.52,7.41907833]
[1764110701730,7.87709006,138.56,138.52,8.13907833]
[1764110702032,0.66,138.55,138.52,7.41907833]
[1764110705246,0.66,138.55,138.52,8.13907833]
[1764110705734,0.66,138.56,138.52,8.13907833]
[1764110706326,0.66,138.56,138.52,7.41907833]
[1764110706916,2.73595102,138.62,138.54,11.54589594]
[1764110707134,2.73595102,138.62,138.56,25.11880892]
[1764110707135,0.66,138.62,138.56,25.11880892]
[1764110707338,2.73595102,138.64,138.58,8.80994492]
[1764110707339,3.88,138.64,138.58,8.80994492]
[1764110707539,18.02883212,138.67,138.6,8.80994492]
[1764110707540,3.39595102,138.67,138.6,8.80994492]
[1764110707945,3.39595102,138.67,138.61,0.72]
[1764110708238,0.66,138.66,138.61,0.72]
[1764110708949,10.43099448,138.68,138.62,7.21396623]
[1764110709129,3.22,138.68,138.62,25.24888182]
[1764110709330,3.88,138.68,138.63,0.72]
[1764110709718,0.66,138.67,138.63,0.72]
[1764110710940,0.66,138.67,138.63,7.93296739]
[1764110712029,7.21091865,138.68,138.64,7.93269063]
[1764110712231,7.87091865,138.68,138.64,7.93269063]
[1764110712420,7.87091865,138.68,138.64,7.93287697]
[1764110712617,7.21053424,138.69,138.65,0.72]
[1764110712931,7.87053424,138.69,138.65,0.72]
[1764110713541,0.66,138.69,138.65,0.72]
[1764110714238,0.66,138.69,138.65,7.93210248]
[1764110714431,13.16596416,138.7,138.65,7.93210248]
[1764110714432,11.09001314,138.7,138.65,7.93210248]
[1764110714623,11.09001314,138.7,138.66,0.72]
[1764110714944,0.66,138.69,138.66,0.72]
[1764110715133,0.66,138.69,138.65,7.93210248]
[1764110717021,0.66,138.69,138.66,0.72]
[1764110717447,0.66,138.69,138.65,0.72]
[1764110718552,0.66,138.69,138.66,7.21188518]
[1764110719223,11.08939583,138.71,138.65,25.96325752]
[1764110719425,11.08939583,138.71,138.66,0.72]
[1764110719639,10.42939583,138.71,138.66,0.72]
[1764110720236,11.08939583,138.71,138.67,7.21136511]
[1764110720442,10.42939583,138.71,138.67,7.21136511]
[1764110720638,13.82534685,138.71,138.67,7.93136511]
[1764110724752,0.68,138.7,138.66,0.67]
[1764110725944,5.95595102,138.71,138.66,0.67]
[1764110726267,3.41595102,138.71,138.66,0.67]
[1764110726830,3.41595102,138.71,138.67,7.21136511]
[1764110727344,3.41595102,138.71,138.67,7.88136511]
[1764110728549,0.68,138.71,138.67,7.88136511]
[1764110729449,10.62528845,138.71,138.67,7.88136511]
[1764110729654,0.68,138.7,138.67,7.21136511]
[1764110729825,2.73595102,138.69,138.64,7.21292556]
[1764110730230,0.68,138.68,138.64,7.21292556]
[1764110730430,3.41595102,138.68,138.64,7.21292556]
[1764110730638,0.68,138.67,138.63,7.88332436]
[1764110730833,0.68,138.67,138.61,5.95595102]
[1764110730834,0.68,138.67,138.61,3.89]
[1764110731046,0.68,138.67,138.62,7.21373895]
[1764110731557,7.21188518,138.66,138.62,7.21373895]
[1764110732255,0.68,138.65,138.62,7.21373895]
[1764110732843,3.22,138.68,138.63,16.978864]
[1764110733352,0.68,138.67,138.63,16.978864]
[1764110733537,0.68,138.67,138.64,7.21292556]
[1764110734452,0.68,138.67,138.62,21.44086661]
[1764110734453,7.89143326,138.67,138.63,7.21321903]
[1764110734945,0.68,138.66,138.63,7.21321903]
[1764110737238,0.68,138.66,138.63,7.88321903]
[1764110737446,0.68,138.66,138.63,7.21321903]
[1764110740740,2.73595102,138.65,138.59,0.67]
[1764110740936,2.73595102,138.65,138.58,18.70941632]
[1764110741242,0.68,138.64,138.58,18.70941632]
[1764110741555,0.68,138.64,138.58,7.8858178]
[1764110742565,7.21344586,138.63,138.58,7.8858178]
[1764110743032,3.9,138.62,138.57,7.21643273]
[1764110743561,3.41595102,138.61,138.56,23.52584888]
[1764110743743,3.41595102,138.61,138.56,7.21698488]
[1764110743943,0.68,138.6,138.56,7.21698488]
[1764110744466,0.68,138.6,138.55,7.88745911]
[1764110744649,7.21552781,138.59,138.55,0.67]
[1764110744851,7.21552781,138.59,138.55,7.88751791]
[1764110745149,7.89552781,138.59,138.55,7.88751791]
[1764110745551,0.68,138.58,138.55,7.21751791]
[1764110745758,3.9,138.58,138.54,7.21791731]
[1764110746056,3.9,138.58,138.53,7.21842151]
[1764110746368,0.68,138.57,138.53,7.88842151]
[1764110746735,7.89668113,138.57,138.53,7.21842151]
[1764110747149,0.68,138.56,138.53,7.21842151]
[1764110748542,0.68,138.56,138.52,0.2]
[1764110748744,7.89710199,138.56,138.52,0.2]
[1764110748934,0.68,138.56,138.52,0.2]
[1764110749139,0.68,138.55,138.52,0.2]
[1764110749553,3.22,138.54,138.52,0.2]
[1764110749846,7.21865299,138.53,138.52,0.2]
[1764110750147,7.89865299,138.53,138.52,0.2]
[1764110753067,10.63460401,138.53,138.52,0.2]
[1764110754559,13.5286459,138.53,138.52,0.2]
[1764110755771,16.26459692,138.53,138.52,0.2]
[1764110756366,13.5286459,138.53,138.52,0.2]
[1764110756967,16.26459692,138.53,138.52,0.2]
[1764110758953,24.47244998,138.53,138.52,1e-08]
[1764110759460,24.47244998,138.53,138.51,0.2]
[1764110759461,51.32902739,138.53,138.5,0.2]
[1764110759656,2.73595102,138.51,138.5,0.2]
[1764110759854,5.95595102,138.51,138.5,0.2]
[1764110760172,8.80994492,138.5,138.49,0.2]
[1764110760357,14.25589593,138.5,138.49,1e-08]
[1764110761460,29.40119221,138.5,138.49,1e-08]
[1764110761642,29.40119221,138.5,138.39,0.2]
[1764110761643,2.73595102,138.45,138.39,0.2]
[1764110761845,2.73595102,138.43,138.39,0.2]
[1764110762069,0.71,138.42,138.39,0.2]
[1764110762274,3.22,138.41,138.39,0.2]
[1764110762650,3.93,138.41,138.39,0.2]
[1764110763374,7.22543352,138.4,138.39,0.2]
[1764110766577,7.93543352,138.4,138.39,0.2]
[1764110769984,7.22543352,138.4,138.39,0.2]
[1764110770680,7.93543352,138.4,138.39,0.2]
[1764110771762,12.21909332,138.4,138.39,0.2]
[1764110773174,11.50909332,138.4,138.39,0.2]
[1764110773378,12.21909332,138.4,138.39,0.2]
[1764110775183,15.1158598,138.4,138.38,0.2]
[1764110775361,4.9936598,138.39,138.38,0.2]
[1764110775766,7.89042628,138.39,138.38,0.2]
[1764110776073,15.11638191,138.39,138.38,0.2]
[1764110777497,7.89042628,138.39,138.38,0.2]
[1764110778363,19.40004171,138.39,138.38,0.2]
[1764110778959,28.20998663,138.39,138.38,1e-08]
[1764110781103,28.20998663,138.39,138.37,0.2]
[1764110781104,0.71,138.38,138.37,1e-08]
[1764110781393,24.5225238,138.38,138.37,1e-08]
[1764110781761,17.018864,138.37,138.36,1e-08]
[1764110781962,21.3025238,138.37,138.36,1e-08]
[1764110783065,28.52952387,138.37,138.36,1e-08]
[1764110784478,31.42691983,138.37,138.36,1e-08]
[1764110786591,16.308864,138.33,138.27,0.86]
[1764110786780,4.2836598,138.3,138.27,0.86]
[1764110786976,3.22,138.32,138.27,0.86]
[1764110786977,3.22,138.29,138.27,0.86]
[1764110787602,7.5036598,138.29,138.27,0.2]
[1764110788095,7.23170378,138.28,138.27,0.2]
[1764110789382,7.5036598,138.29,138.27,0.2]
[1764110789593,4.2836598,138.28,138.27,0.2]
[1764110789785,4.9636598,138.28,138.27,0.2]
[1764110790194,0.68,138.28,138.27,0.2]
[1764110790375,4.9636598,138.28,138.27,0.2]
[1764110790777,4.2836598,138.28,138.27,0.2]
[1764110791074,11.51536358,138.28,138.27,0.2]
[1764110791275,12.19536358,138.28,138.27,0.2]
[1764110791678,30.27462305,138.28,138.25,0.2]
[1764110791874,20.5925238,138.26,138.25,0.2]
[1764110792088,24.4925238,138.26,138.25,0.2]
[1764110792290,8.80994492,138.25,138.23,0.2]
[1764110792506,4.2836598,138.24,138.23,0.2]
[1764110792714,4.9636598,138.24,138.23,0.2]
[1764110793203,7.91379629,138.24,138.23,0.2]
[1764110793505,15.41745609,138.24,138.23,0.2]
[1764110794383,14.73745609,138.24,138.23,0.2]
[1764110795501,15.41745609,138.24,138.23,0.2]
[1764110795901,14.73745609,138.24,138.23,0.2]
[1764110796400,15.41745609,138.24,138.23,0.2]
[1764110798483,15.41745609,138.24,138.23,1e-08]
[1764110798686,31.72632009,138.24,138.23,1e-08]
[1764110802994,43.43660217,138.24,138.23,1e-08]
[1764110805407,27.12773817,138.24,138.23,1e-08]
[1764110806523,34.62665725,138.24,138.23,1e-08]
[1764110806689,26.76266029,138.24,138.23,0.66000001]
[1764110806890,3.22,138.24,138.23,0.66000001]
[1764110807118,10.45379629,138.24,138.23,0.66000001]
[1764110807296,3.22,138.24,138.23,0.66000001]
[1764110807833,10.45379629,138.24,138.23,0.66000001]
[1764110808298,3.22,138.24,138.23,0.66000001]
[1764110809910,3.22,138.24,138.23,9.46994493]
[1764110810298,3.22,138.26,138.23,9.46994493]
[1764110810497,3.22,138.26,138.24,0.66]
[1764110811721,10.45276458,138.26,138.24,0.66]
[1764110812293,3.22,138.26,138.24,0.66]
[1764110812496,10.45293775,138.26,138.24,0.66]
[1764110812997,14.73659755,138.26,138.24,0.66]
[1764110813406,32.81847227,138.26,138.24,0.69]
[1764110813620,32.81847227,138.26,138.23,0.69000001]
[1764110813826,4.2836598,138.25,138.23,0.69000001]
[1764110814634,7.23379629,138.24,138.23,0.69000001]
[1764110815729,7.23379629,138.24,138.23,1e-08]
[1764110816212,7.23379629,138.24,138.23,0.69000001]
[1764110816632,7.23327305,138.25,138.23,0.69000001]
[1764110816835,11.51693285,138.25,138.23,0.50600001]
[1764110817134,7.23327305,138.25,138.2,7.23586296]
[1764110817509,11.51693285,138.25,138.2,7.23586296]
[1764110818926,11.51693285,138.25,138.21,0.69]
[1764110820339,20.238864,138.26,138.21,0.69]
[1764110820501,20.5925238,138.26,138.21,0.69]
[1764110820706,4.2836598,138.28,138.22,8.80994492]
[1764110821008,3.22,138.27,138.22,13.09360472]
[1764110821208,3.22,138.27,138.23,0.68]
[1764110822130,3.22,138.27,138.25,7.23327305]
[1764110822308,23.54026206,138.29,138.25,7.23327305]
[1764110822516,3.22,138.28,138.26,0.68]
[1764110824240,10.45195425,138.28,138.26,0.68]
[1764110824535,3.22,138.28,138.26,0.68]
[1764110824903,9.97490656,138.33,138.27,8.80994492]
[1764110825128,3.22,138.32,138.27,8.80994492]
[1764110825331,3.22,138.32,138.28,0.68]
[1764110826335,10.44962915,138.32,138.28,0.68]
[1764110827399,13.19544586,138.32,138.28,0.68]
[1764110827738,2.74581671,138.3,138.28,0.68]
[1764110827912,3.22,138.29,138.28,0.68]
[1764110828118,3.22,138.29,138.27,0.68]
[1764110828313,3.22,138.29,138.26,8.80994492]
[1764110828509,3.22,138.29,138.28,0.68]
[1764110829346,10.45126719,138.29,138.26,9.48994492]
[1764110829539,13.1970839,138.29,138.26,0.68]
[1764110829842,13.9070839,138.29,138.25,8.80994492]
[1764110830036,13.9070839,138.29,138.21,8.80994492]
[1764110830037,2.74581671,138.27,138.21,8.80994492]
[1764110830239,5.96581671,138.26,138.23,0.68]
[1764110831130,6.67581671,138.26,138.21,9.48994492]
[1764110831304,7.23379629,138.24,138.21,0.68]
[1764110831499,3.22,138.23,138.21,0.68]
[1764110834619,3.22,138.23,138.21,7.91525756]
[1764110835134,3.22,138.23,138.21,7.23525756]
[1764110835313,7.23289275,138.26,138.22,0.68]
[1764110835641,10.45275309,138.26,138.22,9.48994492]